[Event "*** SCC Grand Prix: Titled Tuesday Blitz"]
[Site "Chess.com"]
[Date "2020.07.14"]
[Round "10"]
[White "rugbyclub"]
[Black "barriochess"]
[Result "1-0"]
[WhiteElo "2132"]
[BlackElo "2261"]
[TimeControl "180+1"]
[EndTime "11:55:20 PDT"]
[Termination "rugbyclub won by resignation"]

1. c4 {[%clk 0:03:00.9]} 1... e6 {[%clk 0:02:59.5]} 2. Nc3 {[%clk 0:03:00.9]}
2... d5 {[%clk 0:03:00.4]} 3. d4 {[%clk 0:03:00.5]} 3... c5 {[%clk 0:03:00.4]}
4. cxd5 {[%clk 0:03:00.3]} 4... exd5 {[%clk 0:03:01.3]} 5. Nf3 {[%clk
0:02:59.8]} 5... Nc6 {[%clk 0:03:01.7]} 6. dxc5 {[%clk 0:02:59.7]} 6... d4
{[%clk 0:03:00.1]} 7. Na4 {[%clk 0:02:59.7]} 7... b5 {[%clk 0:02:53.3]} 8. cxb6
{[%clk 0:02:58.7]} 8... axb6 {[%clk 0:02:53.6]} 9. b3 {[%clk 0:02:38.9]} 9...
Bf5 {[%clk 0:02:44.1]} 10. Bd2 {[%clk 0:02:29.3]} 10... Ba3 {[%clk 0:02:37.4]}
11. e3 {[%clk 0:02:17.9]} 11... Nge7 {[%clk 0:02:35]} 12. Bb5 {[%clk 0:02:06.9]}
12... O-O {[%clk 0:02:33.3]} 13. O-O {[%clk 0:02:02.9]} 13... Qd5 {[%clk
0:02:16.7]} 14. Bc4 {[%clk 0:01:58.3]} 14... Qd8 {[%clk 0:02:14.5]} 15. exd4
{[%clk 0:01:56.9]} 15... Nxd4 {[%clk 0:02:13.1]} 16. Nxd4 {[%clk 0:01:56.9]}
16... Qxd4 {[%clk 0:02:14]} 17. Be3 {[%clk 0:01:56.6]} 17... Qxd1 {[%clk
0:02:11.6]} 18. Rfxd1 {[%clk 0:01:55.2]} 18... Rab8 {[%clk 0:01:44.2]} 19. Nxb6
{[%clk 0:01:52.9]} 19... Bb2 {[%clk 0:01:41.9]} 20. Rab1 {[%clk 0:01:35.1]}
20... Bxb1 {[%clk 0:01:40.2]} 21. Rxb1 {[%clk 0:01:35.5]} 21... Rfd8 {[%clk
0:01:38.3]} 22. Rxb2 {[%clk 0:01:32.2]} 1-0

[Event "*** SCC Grand Prix: Titled Tuesday Blitz"]
[Site "Chess.com"]
[Date "2020.07.14"]
[Round "10"]
[White "viditchess"]
[Black "FontVella8"]
[Result "1-0"]
[WhiteElo "2979"]
[BlackElo "2540"]
[TimeControl "180+1"]
[EndTime "11:55:48 PDT"]
[Termination "viditchess won by resignation"]

1. c4 {[%clk 0:03:00.9]} 1... e5 {[%clk 0:02:59.7]} 2. Nc3 {[%clk 0:03:00.9]}
2... d6 {[%clk 0:02:59]} 3. g3 {[%clk 0:03:00.8]} 3... Nc6 {[%clk 0:02:58.3]} 4.
Bg2 {[%clk 0:03:00.3]} 4... Be6 {[%clk 0:02:58.6]} 5. d3 {[%clk 0:03:00.3]} 5...
Qd7 {[%clk 0:02:57.9]} 6. e4 {[%clk 0:03:00.6]} 6... Nge7 {[%clk 0:02:55.5]} 7.
Nge2 {[%clk 0:03:00.7]} 7... g6 {[%clk 0:02:54.8]} 8. Nd5 {[%clk 0:03:00.7]}
8... Bg7 {[%clk 0:02:55]} 9. h4 {[%clk 0:02:54.9]} 9... h6 {[%clk 0:02:49.7]}
10. Be3 {[%clk 0:02:50.5]} 10... Nd4 {[%clk 0:02:44.8]} 11. Bxd4 {[%clk
0:02:47.2]} 11... exd4 {[%clk 0:02:44.3]} 12. Nxe7 {[%clk 0:02:42.8]} 12... Qxe7
{[%clk 0:02:44.3]} 13. Nf4 {[%clk 0:02:41.4]} 13... O-O {[%clk 0:02:39.5]} 14.
O-O {[%clk 0:02:40.3]} 14... a6 {[%clk 0:02:34]} 15. Bh3 {[%clk 0:02:35.6]}
15... Bxh3 {[%clk 0:02:26.9]} 16. Nxh3 {[%clk 0:02:36.5]} 16... b5 {[%clk
0:02:27]} 17. Rc1 {[%clk 0:02:34.3]} 17... Rab8 {[%clk 0:02:25]} 18. b3 {[%clk
0:02:34.4]} 18... f5 {[%clk 0:02:04]} 19. Nf4 {[%clk 0:02:33.3]} 19... Qf7
{[%clk 0:02:01.8]} 20. exf5 {[%clk 0:02:33.7]} 20... Qxf5 {[%clk 0:01:59.3]} 21.
cxb5 {[%clk 0:02:33.7]} 21... axb5 {[%clk 0:01:54.9]} 22. Rxc7 {[%clk
0:02:33.7]} 22... Rf7 {[%clk 0:01:31.7]} 23. Rxf7 {[%clk 0:02:31]} 23... Qxf7
{[%clk 0:01:32.6]} 24. Qg4 {[%clk 0:02:31.1]} 24... Kh7 {[%clk 0:01:32.5]} 25.
Rc1 {[%clk 0:02:26.4]} 25... h5 {[%clk 0:01:29]} 26. Qe6 {[%clk 0:02:25.1]}
26... Qxe6 {[%clk 0:01:22.9]} 27. Nxe6 {[%clk 0:02:26]} 27... Rb7 {[%clk
0:01:21.3]} 28. Rc6 {[%clk 0:02:22]} 28... Rd7 {[%clk 0:00:55.8]} 29. Rb6 {[%clk
0:02:17.2]} 1-0

[Event "*** SCC Grand Prix: Titled Tuesday Blitz"]
[Site "Chess.com"]
[Date "2020.07.14"]
[Round "10"]
[White "Ausbildung"]
[Black "OnePeculiarConundrum"]
[Result "1-0"]
[WhiteElo "2221"]
[BlackElo "2322"]
[TimeControl "180+1"]
[EndTime "11:55:51 PDT"]
[Termination "Ausbildung won by checkmate"]

1. e4 {[%clk 0:03:00.6]} 1... c5 {[%clk 0:03:00]} 2. c4 {[%clk 0:02:59.4]} 2...
d6 {[%clk 0:02:58.2]} 3. Nf3 {[%clk 0:02:57.9]} 3... Nc6 {[%clk 0:02:57.7]} 4.
d4 {[%clk 0:02:57.2]} 4... cxd4 {[%clk 0:02:57.9]} 5. Nxd4 {[%clk 0:02:56.8]}
5... g6 {[%clk 0:02:58.1]} 6. Nc3 {[%clk 0:02:55.4]} 6... Bg7 {[%clk 0:02:57.9]}
7. Be3 {[%clk 0:02:54.8]} 7... Nf6 {[%clk 0:02:56.7]} 8. f3 {[%clk 0:02:53.5]}
8... O-O {[%clk 0:02:56]} 9. Be2 {[%clk 0:02:52.1]} 9... a6 {[%clk 0:02:55]} 10.
O-O {[%clk 0:02:50.8]} 10... Nxd4 {[%clk 0:02:49.8]} 11. Bxd4 {[%clk 0:02:50]}
11... Nd7 {[%clk 0:02:49.8]} 12. Qd2 {[%clk 0:02:48.3]} 12... Nc5 {[%clk
0:02:39.8]} 13. Bxg7 {[%clk 0:02:46.1]} 13... Kxg7 {[%clk 0:02:40.7]} 14. b4
{[%clk 0:02:42.2]} 14... Ne6 {[%clk 0:02:40]} 15. Rfd1 {[%clk 0:02:38]} 15...
Qb6+ {[%clk 0:02:38.1]} 16. Kh1 {[%clk 0:02:32.3]} 16... Qxb4 {[%clk 0:02:36.6]}
17. Rab1 {[%clk 0:02:28.5]} 17... Qa5 {[%clk 0:02:34.8]} 18. f4 {[%clk
0:02:24.8]} 18... Nc5 {[%clk 0:02:31.4]} 19. Qd4+ {[%clk 0:02:20.8]} 19... f6
{[%clk 0:02:29.5]} 20. Nd5 {[%clk 0:02:18.9]} 20... Qd8 {[%clk 0:02:14.5]} 21.
e5 {[%clk 0:02:14.6]} 21... dxe5 {[%clk 0:02:08.2]} 22. Qxc5 {[%clk 0:02:10.9]}
22... Be6 {[%clk 0:02:00.9]} 23. Nb6 {[%clk 0:02:06.1]} 23... exf4 {[%clk
0:01:48.6]} 24. Rxd8 {[%clk 0:02:03.7]} 24... Raxd8 {[%clk 0:01:49.5]} 25. Qxe7+
{[%clk 0:02:02]} 25... Bf7 {[%clk 0:01:49.2]} 26. Nd5 {[%clk 0:01:58.3]} 26...
f5 {[%clk 0:01:43.9]} 27. Rxb7 {[%clk 0:01:55.7]} 27... Rde8 {[%clk 0:01:42.9]}
28. Qf6+ {[%clk 0:01:54]} 28... Kh6 {[%clk 0:01:42.9]} 29. Rxf7 {[%clk
0:01:48.1]} 29... Rxf7 {[%clk 0:01:40.7]} 30. Qxf7 {[%clk 0:01:44.7]} 30... Rxe2
{[%clk 0:01:40.6]} 31. Kg1 {[%clk 0:01:41.7]} 31... Rxa2 {[%clk 0:01:39.4]} 32.
h4 {[%clk 0:01:39.9]} 32... f3 {[%clk 0:01:37.1]} 33. gxf3 {[%clk 0:01:37.7]}
33... f4 {[%clk 0:01:36.3]} 34. Nf6 {[%clk 0:01:35.8]} 34... Ra1+ {[%clk
0:01:34.5]} 35. Kg2 {[%clk 0:01:34.4]} 35... Ra2+ {[%clk 0:01:34.5]} 36. Kh3
{[%clk 0:01:33.8]} 36... Rh2+ {[%clk 0:01:31.5]} 37. Kxh2 {[%clk 0:01:32.6]}
37... g5 {[%clk 0:01:32.4]} 38. Qxh7# {[%clk 0:01:30.9]} 1-0

[Event "*** SCC Grand Prix: Titled Tuesday Blitz"]
[Site "Chess.com"]
[Date "2020.07.14"]
[Round "10"]
[White "Monmoransy"]
[Black "albano87"]
[Result "0-1"]
[WhiteElo "2611"]
[BlackElo "2502"]
[TimeControl "180+1"]
[EndTime "11:55:55 PDT"]
[Termination "albano87 won by resignation"]

1. e4 {[%clk 0:03:00.9]} 1... c5 {[%clk 0:02:59.5]} 2. Nf3 {[%clk 0:03:00.7]}
2... Nc6 {[%clk 0:02:59.4]} 3. d4 {[%clk 0:03:00.4]} 3... cxd4 {[%clk
0:02:59.1]} 4. Nxd4 {[%clk 0:03:01.3]} 4... Nf6 {[%clk 0:02:59.2]} 5. Nc3 {[%clk
0:03:01.2]} 5... d6 {[%clk 0:02:59.1]} 6. Be2 {[%clk 0:02:58.6]} 6... Nxd4
{[%clk 0:02:58.2]} 7. Qxd4 {[%clk 0:02:57.7]} 7... g6 {[%clk 0:02:58.8]} 8. Bg5
{[%clk 0:02:55.9]} 8... Bg7 {[%clk 0:02:58.7]} 9. Nd5 {[%clk 0:02:56.2]} 9...
O-O {[%clk 0:02:59.1]} 10. Bxf6 {[%clk 0:02:55.9]} 10... exf6 {[%clk 0:03:00]}
11. O-O-O {[%clk 0:02:54.1]} 11... f5 {[%clk 0:03:00.4]} 12. Qb4 {[%clk
0:02:50.3]} 12... Re8 {[%clk 0:02:54.8]} 13. exf5 {[%clk 0:02:38]} 13... Rxe2
{[%clk 0:02:48.4]} 14. Ne3 {[%clk 0:01:24.8]} 14... Bxf5 {[%clk 0:02:41.5]} 15.
Nxf5 {[%clk 0:01:21.2]} 15... gxf5 {[%clk 0:02:39.4]} 16. Rxd6 {[%clk
0:01:20.9]} 16... Qg5+ {[%clk 0:02:37.2]} 17. Kb1 {[%clk 0:01:19.3]} 17... Rae8
{[%clk 0:02:33.3]} 18. Rhd1 {[%clk 0:01:17.9]} 18... Qxg2 {[%clk 0:02:30.6]} 19.
Rd7 {[%clk 0:01:12.3]} 19... Qxf2 {[%clk 0:02:27.9]} 20. Qc4 {[%clk 0:01:09.4]}
20... R2e6 {[%clk 0:02:10.4]} 21. Qc7 {[%clk 0:00:59.5]} 21... Rb6 {[%clk
0:02:03.8]} 22. b3 {[%clk 0:00:38.3]} 22... Rc6 {[%clk 0:02:01.8]} 0-1

[Event "*** SCC Grand Prix: Titled Tuesday Blitz"]
[Site "Chess.com"]
[Date "2020.07.14"]
[Round "10"]
[White "FairChess_on_YouTube"]
[Black "OparinGrigoriy"]
[Result "1-0"]
[WhiteElo "3004"]
[BlackElo "2924"]
[TimeControl "180+1"]
[EndTime "11:56:00 PDT"]
[Termination "FairChess_on_YouTube won by resignation"]

1. e4 {[%clk 0:03:00.9]} 1... e5 {[%clk 0:02:58.8]} 2. Nf3 {[%clk 0:02:59.8]}
2... Nc6 {[%clk 0:02:59.4]} 3. Nc3 {[%clk 0:03:00.1]} 3... Nf6 {[%clk
0:02:59.3]} 4. Bb5 {[%clk 0:03:00.7]} 4... Nd4 {[%clk 0:02:58.5]} 5. Bd3 {[%clk
0:03:00]} 5... d6 {[%clk 0:02:45.6]} 6. Nxd4 {[%clk 0:02:58]} 6... exd4 {[%clk
0:02:45.8]} 7. Ne2 {[%clk 0:02:58.6]} 7... c5 {[%clk 0:02:44.1]} 8. c3 {[%clk
0:02:57.6]} 8... dxc3 {[%clk 0:02:38.9]} 9. dxc3 {[%clk 0:02:58.5]} 9... Be7
{[%clk 0:02:33.5]} 10. O-O {[%clk 0:02:57.6]} 10... O-O {[%clk 0:02:33.6]} 11.
Ng3 {[%clk 0:02:51.7]} 11... Be6 {[%clk 0:02:20.9]} 12. Bc2 {[%clk 0:02:49]}
12... Re8 {[%clk 0:02:10.6]} 13. h3 {[%clk 0:02:35]} 13... Qc7 {[%clk
0:02:09.3]} 14. Bf4 {[%clk 0:02:33.5]} 14... Rad8 {[%clk 0:02:08.6]} 15. Re1
{[%clk 0:02:14.4]} 15... Qb6 {[%clk 0:02:06]} 16. Ba4 {[%clk 0:02:13.3]} 16...
Rf8 {[%clk 0:02:01.7]} 17. Nf5 {[%clk 0:02:10.3]} 17... Bxf5 {[%clk 0:01:38.9]}
18. exf5 {[%clk 0:02:11.2]} 18... Qc7 {[%clk 0:01:39.5]} 19. Bg3 {[%clk
0:01:49]} 19... Ne8 {[%clk 0:00:56.9]} 20. Qe2 {[%clk 0:01:46.1]} 20... b5
{[%clk 0:00:34.6]} 21. Bxb5 {[%clk 0:01:46.1]} 1-0

[Event "*** SCC Grand Prix: Titled Tuesday Blitz"]
[Site "Chess.com"]
[Date "2020.07.14"]
[Round "10"]
[White "Efremov_Vlad"]
[Black "pfalcon1949"]
[Result "0-1"]
[WhiteElo "2185"]
[BlackElo "2066"]
[TimeControl "180+1"]
[EndTime "11:56:08 PDT"]
[Termination "pfalcon1949 won by resignation"]

1. d4 {[%clk 0:03:00.9]} 1... Nf6 {[%clk 0:02:59.2]} 2. c4 {[%clk 0:03:01.5]}
2... e6 {[%clk 0:02:59.6]} 3. Nf3 {[%clk 0:03:01.8]} 3... Bb4+ {[%clk
0:02:59.7]} 4. Bd2 {[%clk 0:03:01.6]} 4... Qe7 {[%clk 0:02:57.5]} 5. g3 {[%clk
0:03:01.7]} 5... Nc6 {[%clk 0:02:54.5]} 6. Nc3 {[%clk 0:03:02]} 6... O-O {[%clk
0:02:47.9]} 7. Bg2 {[%clk 0:03:02]} 7... Na5 {[%clk 0:02:48]} 8. b3 {[%clk
0:03:01.4]} 8... b6 {[%clk 0:02:47.2]} 9. O-O {[%clk 0:03:00.8]} 9... Bb7 {[%clk
0:02:47.1]} 10. Qc2 {[%clk 0:02:56.4]} 10... d5 {[%clk 0:02:44.2]} 11. Ne5
{[%clk 0:02:56.3]} 11... Nc6 {[%clk 0:02:40.9]} 12. cxd5 {[%clk 0:02:42.5]}
12... Nxd4 {[%clk 0:02:34.8]} 13. Qd3 {[%clk 0:02:33.2]} 13... Nf5 {[%clk
0:02:09.5]} 14. Nc6 {[%clk 0:02:29]} 14... Bxc6 {[%clk 0:02:04.6]} 15. dxc6
{[%clk 0:02:29.9]} 15... Rfd8 {[%clk 0:01:58.7]} 16. Qc2 {[%clk 0:02:28]} 16...
Nd4 {[%clk 0:01:54.7]} 17. Qb2 {[%clk 0:02:28]} 17... Nxe2+ {[%clk 0:01:47.8]}
18. Nxe2 {[%clk 0:02:28.6]} 18... Rxd2 {[%clk 0:01:46.8]} 19. Qe5 {[%clk
0:02:28.1]} 19... Bd6 {[%clk 0:01:43.2]} 20. Qe3 {[%clk 0:02:25]} 20... Bb4
{[%clk 0:01:35.3]} 21. a3 {[%clk 0:02:25]} 21... Ng4 {[%clk 0:01:16.1]} 22. Qf3
{[%clk 0:02:25.1]} 22... Ne5 {[%clk 0:01:11]} 23. Qe4 {[%clk 0:02:25.6]} 23...
Bd6 {[%clk 0:01:06.4]} 24. Qe3 {[%clk 0:02:24.2]} 24... Rd3 {[%clk 0:01:01.8]}
25. Qc1 {[%clk 0:02:16.3]} 25... Rxb3 {[%clk 0:01:01.4]} 26. Qc2 {[%clk
0:02:09.5]} 26... Rxa3 {[%clk 0:00:57.8]} 27. f4 {[%clk 0:02:05.3]} 27... Rxa1
{[%clk 0:00:55.2]} 28. Rxa1 {[%clk 0:02:03.5]} 28... Ng4 {[%clk 0:00:55.5]} 29.
Be4 {[%clk 0:01:57.3]} 29... f5 {[%clk 0:00:46.3]} 30. Bd3 {[%clk 0:01:56.3]}
30... Bc5+ {[%clk 0:00:43.1]} 31. Kg2 {[%clk 0:01:55.9]} 31... Ne3+ {[%clk
0:00:40.4]} 0-1

[Event "*** SCC Grand Prix: Titled Tuesday Blitz"]
[Site "Chess.com"]
[Date "2020.07.14"]
[Round "10"]
[White "JiiHart"]
[Black "ZverevLev"]
[Result "0-1"]
[WhiteElo "2087"]
[BlackElo "2316"]
[TimeControl "180+1"]
[EndTime "11:56:14 PDT"]
[Termination "ZverevLev won by resignation"]

1. e4 {[%clk 0:03:00.9]} 1... f5 {[%clk 0:02:51.2]} 2. exf5 {[%clk 0:02:58.5]}
2... Nf6 {[%clk 0:02:49.7]} 3. Be2 {[%clk 0:02:52.2]} 3... g6 {[%clk 0:02:44.7]}
4. fxg6 {[%clk 0:02:48.7]} 4... hxg6 {[%clk 0:02:45.6]} 5. Bd3 {[%clk
0:02:43.6]} 5... Kf7 {[%clk 0:02:43.6]} 6. Nf3 {[%clk 0:02:38.4]} 6... d6 {[%clk
0:02:38.3]} 7. Ng5+ {[%clk 0:02:05.3]} 7... Kg7 {[%clk 0:02:36.3]} 8. Qe2 {[%clk
0:01:54.7]} 8... e5 {[%clk 0:02:33.4]} 9. Nc3 {[%clk 0:01:50.5]} 9... Nh5 {[%clk
0:02:25.7]} 10. h4 {[%clk 0:01:18.7]} 10... Nf4 {[%clk 0:02:20.3]} 11. Qe4
{[%clk 0:01:16.5]} 11... Bf5 {[%clk 0:02:14.1]} 12. Qxb7 {[%clk 0:00:20]} 12...
Bxd3 {[%clk 0:02:10.6]} 13. cxd3 {[%clk 0:00:17.4]} 13... Qxg5 {[%clk
0:02:08.9]} 14. g3 {[%clk 0:00:17.1]} 14... Nxd3+ {[%clk 0:02:03.3]} 15. Kd1
{[%clk 0:00:16.1]} 15... Nxf2+ {[%clk 0:02:00.5]} 16. Kc2 {[%clk 0:00:16.6]}
16... Qf5+ {[%clk 0:01:58.9]} 17. Kb3 {[%clk 0:00:16]} 17... Nxh1 {[%clk
0:01:54.5]} 18. Qxb8 {[%clk 0:00:16.1]} 18... Rxb8+ {[%clk 0:01:50.9]} 0-1

[Event "*** SCC Grand Prix: Titled Tuesday Blitz"]
[Site "Chess.com"]
[Date "2020.07.14"]
[Round "10"]
[White "Klaus1995"]
[Black "IAgrest"]
[Result "0-1"]
[WhiteElo "1903"]
[BlackElo "2223"]
[TimeControl "180+1"]
[EndTime "11:56:18 PDT"]
[Termination "IAgrest won by resignation"]

1. e4 {[%clk 0:02:59.9]} 1... e5 {[%clk 0:03:00.1]} 2. Nf3 {[%clk 0:02:59.2]}
2... Nc6 {[%clk 0:03:00.7]} 3. Bc4 {[%clk 0:02:58.1]} 3... Nf6 {[%clk
0:03:00.3]} 4. Ng5 {[%clk 0:02:57.7]} 4... d5 {[%clk 0:03:00]} 5. exd5 {[%clk
0:02:58.3]} 5... Na5 {[%clk 0:03:00.5]} 6. Bb5+ {[%clk 0:02:58.3]} 6... Bd7
{[%clk 0:03:01.1]} 7. Bxd7+ {[%clk 0:02:57]} 7... Qxd7 {[%clk 0:03:02]} 8. Nc3
{[%clk 0:02:57]} 8... Nxd5 {[%clk 0:03:01.3]} 9. d3 {[%clk 0:02:55.8]} 9...
O-O-O {[%clk 0:02:55.8]} 10. Nxd5 {[%clk 0:02:48.9]} 10... Qxd5 {[%clk
0:02:55.3]} 11. Qf3 {[%clk 0:02:47.5]} 11... f6 {[%clk 0:02:50.2]} 12. Qxd5
{[%clk 0:02:45.4]} 12... Rxd5 {[%clk 0:02:51.1]} 13. Nf3 {[%clk 0:02:40.1]}
13... Nc6 {[%clk 0:02:50.6]} 14. Be3 {[%clk 0:02:38.8]} 14... Nb4 {[%clk
0:02:42.5]} 15. O-O-O {[%clk 0:02:33]} 15... Nxa2+ {[%clk 0:02:36.6]} 16. Kb1
{[%clk 0:02:32.8]} 16... Nb4 {[%clk 0:02:30]} 17. d4 {[%clk 0:02:29.6]} 17... e4
{[%clk 0:02:25.3]} 18. Nd2 {[%clk 0:02:28.4]} 18... f5 {[%clk 0:02:24.6]} 19.
Nc4 {[%clk 0:02:20.9]} 19... Be7 {[%clk 0:02:16.4]} 20. Ne5 {[%clk 0:02:20]}
20... Re8 {[%clk 0:01:49.4]} 21. c3 {[%clk 0:02:19.9]} 21... Na6 {[%clk
0:01:43.8]} 22. g4 {[%clk 0:02:16.4]} 22... g6 {[%clk 0:01:37.5]} 23. gxf5
{[%clk 0:02:15.7]} 23... gxf5 {[%clk 0:01:37.4]} 24. Rhg1 {[%clk 0:02:16.4]}
24... Bf6 {[%clk 0:01:35.8]} 25. Bf4 {[%clk 0:02:15.1]} 25... c5 {[%clk
0:01:29.9]} 26. dxc5 {[%clk 0:02:06.5]} 26... Rdxe5 {[%clk 0:01:24.1]} 27. Bxe5
{[%clk 0:02:02.3]} 27... Bxe5 {[%clk 0:01:24.1]} 28. b4 {[%clk 0:02:02]} 28...
Bxc3 {[%clk 0:01:21.7]} 29. Rd5 {[%clk 0:01:56.6]} 29... f4 {[%clk 0:01:16.6]}
30. b5 {[%clk 0:01:56.3]} 30... Nb4 {[%clk 0:01:15.5]} 31. Rf5 {[%clk
0:01:54.6]} 31... e3 {[%clk 0:01:11.5]} 32. fxe3 {[%clk 0:01:53.8]} 32... fxe3
{[%clk 0:01:11.1]} 33. Rf3 {[%clk 0:01:49.4]} 33... e2 {[%clk 0:01:05.9]} 34.
Rxc3 {[%clk 0:01:49.3]} 34... e1=Q+ {[%clk 0:01:05.5]} 35. Rxe1 {[%clk
0:01:49.6]} 35... Rxe1+ {[%clk 0:01:05.5]} 36. Kb2 {[%clk 0:01:50.3]} 36... Re2+
{[%clk 0:01:04.3]} 37. Kb3 {[%clk 0:01:50.8]} 37... Nd5 {[%clk 0:01:02.1]} 38.
Rd3 {[%clk 0:01:49.5]} 38... Re3 {[%clk 0:01:00.8]} 0-1

[Event "*** SCC Grand Prix: Titled Tuesday Blitz"]
[Site "Chess.com"]
[Date "2020.07.14"]
[Round "10"]
[White "vovachesss"]
[Black "Alopekos"]
[Result "1-0"]
[WhiteElo "2586"]
[BlackElo "2342"]
[TimeControl "180+1"]
[EndTime "11:56:27 PDT"]
[Termination "vovachesss won by resignation"]

1. g4 {[%clk 0:03:00.9]} 1... d5 {[%clk 0:02:58.7]} 2. Bg2 {[%clk 0:03:00.8]}
2... c6 {[%clk 0:02:58.5]} 3. c4 {[%clk 0:03:01.2]} 3... dxc4 {[%clk 0:02:44]}
4. h3 {[%clk 0:03:00.1]} 4... h5 {[%clk 0:02:30.4]} 5. g5 {[%clk 0:02:59.5]}
5... h4 {[%clk 0:02:22.9]} 6. d3 {[%clk 0:02:55.7]} 6... cxd3 {[%clk 0:02:20.8]}
7. exd3 {[%clk 0:02:54.3]} 7... Bf5 {[%clk 0:02:18.8]} 8. d4 {[%clk 0:02:53.6]}
8... e5 {[%clk 0:02:11.8]} 9. Ne2 {[%clk 0:02:51.9]} 9... Be7 {[%clk 0:01:56.5]}
10. Rg1 {[%clk 0:02:47.2]} 10... Na6 {[%clk 0:01:24.2]} 11. a3 {[%clk
0:02:35.8]} 11... Qd7 {[%clk 0:01:24.2]} 12. Nbc3 {[%clk 0:02:34.7]} 12... Bxh3
{[%clk 0:01:18.9]} 13. Bxh3 {[%clk 0:02:28.9]} 13... Qxh3 {[%clk 0:01:19.8]} 14.
Be3 {[%clk 0:02:26.4]} 14... exd4 {[%clk 0:00:54.7]} 15. Nxd4 {[%clk 0:02:20.8]}
15... O-O-O {[%clk 0:00:41.6]} 16. Qb3 {[%clk 0:02:12.7]} 16... Nc5 {[%clk
0:00:24.3]} 17. Qxf7 {[%clk 0:02:12.6]} 17... Nd3+ {[%clk 0:00:24.4]} 18. Ke2
{[%clk 0:02:12.8]} 18... Ne5 {[%clk 0:00:21.2]} 19. Qxg7 {[%clk 0:02:09.9]}
19... c5 {[%clk 0:00:05.1]} 20. Qxe5 {[%clk 0:01:52.2]} 20... cxd4 {[%clk
0:00:04.9]} 21. Nb5 {[%clk 0:01:53.1]} 21... d3+ {[%clk 0:00:03.3]} 22. Kd2
{[%clk 0:01:52.3]} 22... Rd7 {[%clk 0:00:02]} 1-0

[Event "*** SCC Grand Prix: Titled Tuesday Blitz"]
[Site "Chess.com"]
[Date "2020.07.14"]
[Round "10"]
[White "Bodnar_Mykola"]
[Black "MacDaddyMac"]
[Result "1-0"]
[WhiteElo "2475"]
[BlackElo "2311"]
[TimeControl "180+1"]
[EndTime "11:56:30 PDT"]
[Termination "Bodnar_Mykola won by checkmate"]

1. e4 {[%clk 0:03:00.9]} 1... e6 {[%clk 0:02:58.5]} 2. d4 {[%clk 0:03:00.6]}
2... d5 {[%clk 0:02:59]} 3. Nc3 {[%clk 0:02:59.6]} 3... Nf6 {[%clk 0:02:57]} 4.
e5 {[%clk 0:02:59.2]} 4... Nfd7 {[%clk 0:02:56.9]} 5. f4 {[%clk 0:02:59.9]} 5...
c5 {[%clk 0:02:57.3]} 6. Nf3 {[%clk 0:03:00.4]} 6... Nc6 {[%clk 0:02:57.6]} 7.
Be3 {[%clk 0:03:00.7]} 7... Qb6 {[%clk 0:02:53.6]} 8. Na4 {[%clk 0:03:00.5]}
8... Qa5+ {[%clk 0:02:53.7]} 9. c3 {[%clk 0:03:01.4]} 9... cxd4 {[%clk
0:02:54.1]} 10. b4 {[%clk 0:03:00.3]} 10... Qc7 {[%clk 0:02:53.8]} 11. Nxd4
{[%clk 0:03:00]} 11... Nxd4 {[%clk 0:02:52.7]} 12. Bxd4 {[%clk 0:02:59.9]} 12...
a6 {[%clk 0:02:52.7]} 13. Bd3 {[%clk 0:02:57.2]} 13... b5 {[%clk 0:02:52.8]} 14.
Nb2 {[%clk 0:02:56.7]} 14... Nb6 {[%clk 0:02:52.2]} 15. O-O {[%clk 0:02:55.4]}
15... Nc4 {[%clk 0:02:49.8]} 16. Qe2 {[%clk 0:02:54.7]} 16... Bb7 {[%clk
0:02:46.8]} 17. Nd1 {[%clk 0:02:53.8]} 17... g6 {[%clk 0:02:43.7]} 18. Ne3
{[%clk 0:02:52.6]} 18... h5 {[%clk 0:02:42.3]} 19. g3 {[%clk 0:02:44.7]} 19...
Be7 {[%clk 0:02:39.5]} 20. h3 {[%clk 0:02:43]} 20... Bc6 {[%clk 0:02:26.2]} 21.
a4 {[%clk 0:02:38.9]} 21... Bb7 {[%clk 0:02:18.7]} 22. axb5 {[%clk 0:02:37.5]}
22... axb5 {[%clk 0:02:19.6]} 23. Rxa8+ {[%clk 0:02:38]} 23... Bxa8 {[%clk
0:02:19.9]} 24. Ra1 {[%clk 0:02:38.9]} 24... Bc6 {[%clk 0:02:08.1]} 25. Ra7
{[%clk 0:02:26]} 25... Qb8 {[%clk 0:02:02.9]} 26. Nxc4 {[%clk 0:02:07.5]} 26...
dxc4 {[%clk 0:02:01.1]} 27. Be4 {[%clk 0:02:07.7]} 27... Bd5 {[%clk 0:01:33.5]}
28. Bxd5 {[%clk 0:02:04.9]} 28... exd5 {[%clk 0:01:33.2]} 29. e6 {[%clk
0:02:04.2]} 29... f6 {[%clk 0:01:30.2]} 30. Qf3 {[%clk 0:01:57.5]} 30... Qd8
{[%clk 0:01:23.1]} 31. f5 {[%clk 0:01:38.9]} 31... g5 {[%clk 0:01:18.7]} 32. Rd7
{[%clk 0:01:29.4]} 32... Qa8 {[%clk 0:01:14.4]} 33. Qxd5 {[%clk 0:01:25.4]}
33... Qa1+ {[%clk 0:01:09.8]} 34. Kg2 {[%clk 0:01:24.2]} 34... g4 {[%clk
0:01:01]} 35. Rxe7+ {[%clk 0:01:22.3]} 35... Kf8 {[%clk 0:01:01]} 36. Rf7+
{[%clk 0:01:21.8]} 36... Ke8 {[%clk 0:00:59.6]} 37. Qd7# {[%clk 0:01:21.8]} 1-0

[Event "*** SCC Grand Prix: Titled Tuesday Blitz"]
[Site "Chess.com"]
[Date "2020.07.14"]
[Round "10"]
[White "reniite"]
[Black "Larina_Marija"]
[Result "0-1"]
[WhiteElo "1913"]
[BlackElo "2103"]
[TimeControl "180+1"]
[EndTime "11:56:33 PDT"]
[Termination "Larina_Marija won by checkmate"]

1. e4 {[%clk 0:03:00.9]} 1... d5 {[%clk 0:02:58.2]} 2. exd5 {[%clk 0:03:00.7]}
2... Qxd5 {[%clk 0:02:59.1]} 3. Nc3 {[%clk 0:03:00.8]} 3... Qa5 {[%clk 0:02:59]}
4. d4 {[%clk 0:03:01]} 4... Nf6 {[%clk 0:02:58.6]} 5. Bc4 {[%clk 0:03:01]} 5...
Bf5 {[%clk 0:02:57.9]} 6. Bd2 {[%clk 0:03:01.2]} 6... Qb6 {[%clk 0:02:57.1]} 7.
Qe2 {[%clk 0:02:55.6]} 7... Qxd4 {[%clk 0:02:48.4]} 8. O-O-O {[%clk 0:02:54.8]}
8... Qg4 {[%clk 0:02:40.8]} 9. f3 {[%clk 0:02:49.9]} 9... Qg6 {[%clk 0:02:40.4]}
10. Bf4 {[%clk 0:02:14.3]} 10... c6 {[%clk 0:02:21.9]} 11. g4 {[%clk 0:02:11.9]}
11... Bd7 {[%clk 0:02:15.1]} 12. h4 {[%clk 0:02:11.3]} 12... Nxg4 {[%clk
0:01:54.9]} 13. fxg4 {[%clk 0:02:10.5]} 13... Bxg4 {[%clk 0:01:55.8]} 14. Nf3
{[%clk 0:02:10.4]} 14... Qh5 {[%clk 0:01:55.4]} 15. Ne4 {[%clk 0:01:54.9]} 15...
e6 {[%clk 0:01:42.1]} 16. Rhf1 {[%clk 0:01:51.4]} 16... Nd7 {[%clk 0:01:35.2]}
17. Neg5 {[%clk 0:01:46.7]} 17... O-O-O {[%clk 0:01:28.7]} 18. Qe3 {[%clk
0:01:36.4]} 18... Bc5 {[%clk 0:01:17.6]} 19. Qb3 {[%clk 0:01:33.5]} 19... h6
{[%clk 0:01:10.8]} 20. Ne4 {[%clk 0:01:27.2]} 20... Bxf3 {[%clk 0:00:52.7]} 21.
Rxf3 {[%clk 0:01:26.8]} 21... Qxh4 {[%clk 0:00:51.3]} 22. Rxd7 {[%clk
0:01:12.4]} 22... Qe1+ {[%clk 0:00:46.1]} 23. Rd1 {[%clk 0:01:08.6]} 23... Qxd1#
{[%clk 0:00:45.7]} 0-1